{"text_format":"2","workbook":"xlsx","n_sheets":2,"sheets":["International MSc_Fulltime_A","International MSc_Fulltime_S1"],"not_rendered":{"charts":0,"images":0,"macros":0,"external_links":0,"defined_names":0,"comments":0,"pivot_tables":0},"unopened":[],"bounds":{"document_bytes":16777216,"sheet_cells":100000,"run_cost":"one","rows_first":2000,"rows_last":500,"rows_between":2000,"halvings":0,"cell_chars":16384,"cell_head_chars":4096},"cells_cut":0,"cells_raw":0,"read":"whole","date_system":"1900"}

{"sheet":"International MSc_Fulltime_A","index":0,"n_rows":81,"n_cols":21,"rows_kept":81,"cut":false,"hidden":false,"merged":[[48,13,48,14],[48,15,49,15],[47,10,47,12],[47,13,47,15],[48,4,48,5],[48,6,49,6],[48,7,48,8],[48,9,49,9],[48,10,48,11],[47,18,47,20],[2,0,4,0],[2,2,4,2],[2,3,4,3],[3,9,4,9],[3,4,3,5],[3,6,4,6],[2,10,2,12],[2,4,2,6],[3,10,3,11],[3,7,3,8],[3,12,4,12],[2,7,2,9],[2,18,2,20],[21,0,44,0],[2,17,4,17],[47,17,49,17],[47,0,54,0],[2,16,4,16],[2,1,4,1],[47,1,49,1],[47,2,49,2],[47,3,49,3],[47,4,47,6],[47,7,47,9],[2,13,2,15],[3,13,3,14],[3,15,4,15],[12,0,18,0],[5,0,9,0],[47,16,49,16],[48,12,49,12]]}
["Last amendment: 05/2020",null,"updated: 07/07/2021"]
[]
["INTER-\nNATIONAL ECONOMY AND BUSINESS MSc\nFULLTIME","Code","Course name","Semester","1st semester",null,null,"2nd semester",null,null,"3rd semester",null,null,"4th semester",null,null,"Credit","Assessment","Prerequisites"]
[{"$nulls":4},"Contact hours/week",null,"Credit","Contact hours/week",null,"Credit","Contact hours/week",null,"Credit","Contact hours/week",null,"Credit"]
[{"$nulls":4},"Lec","Sem",null,"Lec","Sem",null,"Lec","Sem",null,"Lec","Sem",null,null,null,"Exam","Course","Paralell"]
["A: Economic and methodological module","20A101EN","Industrial Organization","S",null,null,null,2,2,5,{"$nulls":6},5,"exam"]
[null,"20A102EN","Macroeconomics","A",2,2,5,{"$nulls":9},5,"exam"]
[null,"20A103EN","Economic and Social Statistics","S",null,null,null,2,2,5,{"$nulls":6},5,"exam"]
[null,"20A119","International Political Economy","A",2,2,5,{"$nulls":9},5,"exam"]
[null,"20A108EN","International Economics","A",2,2,5,{"$nulls":9},5,"exam"]
[null,null,"Total",null,{"$f":"SUM(E6:E10)","v":6},6,15,4,4,10,{"$nulls":6},{"$f":"SUM(Q6:Q10)","v":25}]
[]
["B: International economy and business basic module","23B113","Modern Management and Marketing","S",null,null,null,2,2,5,{"$nulls":6},5,"exam"]
[null,"23B103EN","International Finance","S",null,null,null,2,2,5,{"$nulls":6},5,"exam"]
[null,"23B104EN","Global Economic Trends and Centres","S",null,null,null,2,2,5,{"$nulls":6},5,"exam"]
[null,"23B109","European Business Environment","A",2,2,5,{"$nulls":9},5,"exam"]
[null,"23B110","International Accounting","A",{"$nulls":6},2,2,5,null,null,null,5,"exam",null,"23B103EN"]
[null,"23B111","International Financial Management","A",{"$nulls":6},2,2,5,null,null,null,5,"exam",null,"23B103EN"]
[null,"23B112","International Human Resource Management","A",{"$nulls":6},2,2,5,null,null,null,5,"exam",null,"23B113"]
[null,null,"Total",null,{"$f":"SUM(E13:E19)","v":2},2,5,6,6,15,6,6,15,null,null,null,{"$f":"SUM(Q13:Q19)","v":35}]
[]
["C: Programme-specific  module (semi-optional)",null,"International Business and Management"]
[null,"23C128","International Strategic Management","A",{"$nulls":6},2,1,5,null,null,null,5,"exam",null,"23B113"]
[null,"23C103EN","Global Marketing","A",{"$nulls":6},2,0,4,null,null,null,4,"exam",null,"23B113"]
[null,"23C127-1","Branding",{"$nulls":10},1,1,4,null,null,null,"23B113"]
[null,"23C110EN","International Negotiations and Intercultural Communication","A",1,2,5,{"$nulls":9},5,"exam"]
[null,"22B107EN","European Competition, Trade and Industrial Policies","S",null,null,null,2,1,5,{"$nulls":6},5,"exam",null,"23B109"]
[null,"23C115EN","European Economic and Monetary Union","S",null,null,null,2,0,4,{"$nulls":6},4,"exam",null,"23B109"]
[null,"23C113EN","Services and Intellectual Properties in the Global Economy","S",{"$nulls":9},2,0,4,4,"exam"]
[null,"23C129","Energy in Europe","A",2,0,4,{"$nulls":9},4,"exam"]
[null,"23C116EN","Knowledge Management","S",{"$nulls":9},2,0,4,4,"exam",null,"23B113"]
[null,"23C108EN","Industrial Relations and Employment Policies","S",{"$nulls":9},2,0,4,4,"exam"]
[null,"23C117","    Legal Foundations of International Cooperation","A",1,0,3,{"$nulls":9},3,"exam"]
[null,"23C118","International Trade Law","S",{"$nulls":9},2,0,4,4,"exam"]
[null,"23C130","Human Rights and Business","S",null,null,null,2,0,4,{"$nulls":6},4,"exam"]
[null,"23C123","Research and Development in the EU","S",{"$nulls":9},2,0,4,4,"exam"]
[null,"23C119","Business writing: in-company correspondence","A",{"$nulls":6},2,0,4,null,null,null,4,"exam"]
[null,"23C120","Business Informatics","A",{"$nulls":6},2,1,5,null,null,null,5,"exam"]
[null,"23C122","Internationalisation of firms","S",{"$nulls":9},2,1,5,5,"exam",null,"20A108EN"]
[null,"23C124","Mathematical Statistics","A",2,2,5,{"$nulls":9},5,"exam"]
[null,"23C125","e-Business","A",2,null,4,{"$nulls":9},4,"exam"]
[null,"23C126","Integrated Business Processes with the SAP ERP System",{"$nulls":10},0,3,4,4,"pcm",null,"23B110"]
[null,"23C121","Competitiveness in the EU","A",{"$nulls":6},0,2,4,null,null,null,4,"pcm"]
[null,"23C131","Modern China","A",{"$nulls":6},2,0,4,null,null,null,4,"pcm",null,"23B104EN"]
[null,"CKV","Courses completed abroad",{"$nulls":14},"exam"]
[null,null,"Required credits: 37",null,4,0,8,4,1,9,4,0,8,6,0,12,{"$f":"SUM(Q22:Q45)","v":89}]
[]
["D: Optional module ","Code","Course name","Semester","1st semester",null,null,"2nd semester",null,null,"3rd semester",null,null,"4th semester",null,null,"Credit","Assessment","Prerequisites"]
[{"$nulls":4},"Contact hours/week",null,"Credit","Contact hours/week",null,"Credit","Contact hours/week",null,"Credit","Contact hours/week",null,"Credit"]
[{"$nulls":4},"Lec","Sem",null,"Lec","Sem",null,"Lec","Sem",null,"Lec","Sem",null,null,null,"Exam","Course","Paralell"]
[null,"23D106","Freedom, Security and Justice in Europe","A",{"$nulls":6},2,0,4,null,null,null,4,"exam"]
[null,"20D103","International Week","S",null,null,null,2,null,5,null,null,null,2,null,5,5,"exam"]
[null,"23D108","English for Academic Writing","S",{"$nulls":4},2,4,{"$nulls":6},4,"pcm"]
[null,"23D111","Hungarian Language and Culture for Beginners I-II.*","A/S",0,2,2,0,2,2,{"$nulls":6},4,"pcm"]
[null,"DSZV","Courses completed abroad"]
[null,null,"Required credits: 8**",{"$nulls":7},2,null,4,2,null,4,{"$f":"SUM(Q51:Q55)","v":17}]
[null,null,"* Compulsory for Stipendium Hungaricum scholarship holder students not yet in receipt of Hungarian language teaching"]
[null,null,"** The 8 credits of the optional module can be completed with taking up further courses form the C module"]
[]
["Thesis module","23C501EN","Thesis seminar","S",{"$nulls":10},4,5,5,"pcm"]
[null,"23C502EN","Thesis consultation","S",{"$nulls":10},8,10,10,"pcm"]
[{"$nulls":14},{"$f":"SUM(O60:O61)","v":12},{"$f":"SUM(P60:P61)","v":15},{"$f":"SUM(Q60:Q61)","v":15}]
[]
[null,null,"Total credits",null,null,null,{"$f":"G11+G20+G46+G56+G62","v":28},null,null,{"$f":"J11+J20+J46+J56+J62","v":34},null,null,{"$f":"M11+M20+M46+M56+M62","v":27},null,null,{"$f":"P11+P20+P46+P56+P62","v":31},{"$f":"SUM(G64:P64)","v":120}]
[null,null,"Contact hours / week",null,{"$f":"E11+E20+E46+E56+E62","v":12},{"$f":"F11+F20+F46+F56+F62","v":8},null,{"$f":"H11+H20+H46+H56+H62","v":14},{"$f":"I11+I20+I46+I56+I62","v":11},null,{"$f":"K11+K20+K46+K56+K62","v":12},{"$f":"L11+L20+L46+L56+L62","v":6},null,{"$f":"N11+N20+N46+N56+N62","v":8},{"$f":"O11+O20+O46+O56+O62","v":12}]
[null,null,"Contact hours / semester (lecture, seminar)",null,{"$f":"E65*15","v":180},{"$f":"F65*15","v":120},null,{"$f":"H65*15","v":210},{"$f":"I65*15","v":165},null,{"$f":"K65*15","v":180},{"$f":"L65*15","v":90},null,{"$f":"N65*15","v":120},{"$f":"O65*15","v":180}]
[null,null,"Contact hours / semester together",null,{"$f":"E66+F66","v":300},null,null,{"$f":"H66+I66","v":375},null,null,{"$f":"K66+L66","v":270},null,null,{"$f":"N66+O66","v":300}]
[]
[]
[null,null,"Programme completion and exit requirements (credits) according to Hungarian regulations"]
[null,null,"Economic and methodological module (25-40 credits)",null,null,null,"credits"]
[null,null,"International economy and business basic module (30-45 credits)",null,null,null,25]
[null,null,"Programme-specific module (30-45 credits)",null,null,null,35]
[null,null,"Optional module (minimum 6 credits)",null,null,null,37]
[null,null,"Thesis module (15 credits)",null,null,null,8]
[null,null,"Together (120 credits)",null,null,null,15]
[{"$nulls":6},{"$f":"SUM(G72:G76)","v":120}]
[]
[null,"pcm","practical course mark (five-grade)"]
[null,"A:","Autumn"]
[null,"S:","Spring"]

{"sheet":"International MSc_Fulltime_S1","index":1,"n_rows":80,"n_cols":21,"rows_kept":80,"cut":false,"hidden":false,"merged":[[2,17,4,17],[2,18,2,20],[5,0,9,0],[12,0,18,0],[3,13,3,14],[3,15,4,15],[3,10,3,11],[3,12,4,12],[2,13,2,15],[2,10,2,12],[3,7,3,8],[3,9,4,9],[3,4,3,5],[3,6,4,6],[2,0,4,0],[2,1,4,1],[47,2,49,2],[47,3,49,3],[47,1,49,1],[21,0,44,0],[2,16,4,16],[47,7,47,9],[47,4,47,6],[48,7,48,8],[48,9,49,9],[48,4,48,5],[48,6,49,6],[2,2,4,2],[2,3,4,3],[2,7,2,9],[2,4,2,6],[47,16,49,16],[47,17,49,17],[47,18,47,20],[47,13,47,15],[47,10,47,12],[48,15,49,15],[48,10,48,11],[48,12,49,12],[48,13,48,14]]}
["Last amendment: 05/2020",null,"updated: 07/07/2021"]
[]
["INTER-\nNATIONAL ECONOMY AND BUSINESS MSc\nFULLTIME","Code","Course name","Semester","1st semester (S)",null,null,"2nd semester (A)",null,null,"3rd semester (S)",null,null,"4th semester (A)",null,null,"Credit","Assessment","Prerequisites"]
[{"$nulls":4},"Contact hours/week",null,"Credit","Contact hours/week",null,"Credit","Contact hours/week",null,"Credit","Contact hours/week",null,"Credit"]
[{"$nulls":4},"Lec","Sem",null,"Lec","Sem",null,"Lec","Sem",null,"Lec","Sem",null,null,null,"Exam","Course","Paralell"]
["A: Economic and methodological module","20A101EN","Industrial Organization","S",2,2,5,{"$nulls":9},5,"exam"]
[null,"20A102EN","Macroeconomics","A",null,null,null,2,2,5,{"$nulls":6},5,"exam"]
[null,"20A103EN","Economic and Social Statistics","S",2,2,5,{"$nulls":9},5,"exam"]
[null,"20A119","International Political Economy","A",null,null,null,2,2,5,{"$nulls":6},5,"exam"]
[null,"20A108EN","International Economics","A",null,null,null,2,2,5,{"$nulls":6},5,"exam"]
[null,null,"Total",null,{"$f":"SUM(E6:E10)","v":4},4,10,{"$f":"SUM(H6:H10)","v":6},{"$f":"SUM(I6:I10)","v":6},{"$f":"SUM(J6:J10)","v":15},{"$nulls":6},{"$f":"SUM(Q6:Q10)","v":25}]
[]
["B: International economy and business basic module","23B113","Modern Management and Marketing","S",2,2,5,{"$nulls":9},5,"exam"]
[null,"23B103EN","International Finance","S",2,2,5,{"$nulls":9},5,"exam"]
[null,"23B104EN","Global Economic Trends and Centres","S",2,2,5,{"$nulls":9},5,"exam"]
[null,"23B109","European Business Environment","A",null,null,null,2,2,5,{"$nulls":6},5,"exam"]
[null,"23B110","International Accounting","A",null,null,null,2,2,5,{"$nulls":6},5,"exam",null,"23B103EN"]
[null,"23B111","International Financial Management","A",{"$nulls":9},2,2,5,5,"exam",null,"23B103EN"]
[null,"23B112","International Human Resource Management","A",{"$nulls":9},2,2,5,5,"exam",null,"23B113"]
[null,null,"Total",null,{"$f":"SUM(E13:E19)","v":6},6,15,{"$f":"SUM(H13:H19)","v":4},{"$f":"SUM(I13:I19)","v":4},{"$f":"SUM(J13:J19)","v":10},null,null,null,{"$f":"SUM(N13:N19)","v":4},{"$f":"SUM(O13:O19)","v":4},{"$f":"SUM(P13:P19)","v":10},{"$f":"SUM(Q13:Q19)","v":35}]
[]
["C: Programme-specific  module (semi-optional)",null,"International Business and Management"]
[null,"23C128","International Strategic Management","A",{"$nulls":9},2,1,5,5,"exam",null,"23B113"]
[null,"23C103EN","Global Marketing","A",{"$nulls":9},2,0,4,4,"exam",null,"23B113"]
[null,"23C127-1","Branding",{"$nulls":7},1,1,4,{"$nulls":6},"23B113"]
[null,"23C110EN","International Negotiations and Intercultural Communication","A",null,null,null,1,2,5,{"$nulls":6},5,"exam"]
[null,"22B107EN","European Competition, Trade and Industrial Policies","S",{"$nulls":6},2,1,5,null,null,null,5,"exam",null,"23B109"]
[null,"23C115EN","European Economic and Monetary Union","S",{"$nulls":6},2,0,4,null,null,null,4,"exam",null,"23B109"]
[null,"23C113EN","Services and Intellectual Properties in the Global Economy","S",2,0,4,{"$nulls":9},4,"exam"]
[null,"23C129","Energy in Europe","A",null,null,null,2,0,4,{"$nulls":6},4,"exam"]
[null,"23C116EN","Knowledge Management","S",{"$nulls":6},2,0,4,null,null,null,4,"exam",null,"23B113"]
[null,"23C108EN","Industrial Relations and Employment Policies","S",2,0,4,{"$nulls":9},4,"exam"]
[null,"23C117","    Legal Foundations of International Cooperation","A",null,null,null,1,0,3,{"$nulls":6},3,"exam"]
[null,"23C118","International Trade Law","S",{"$nulls":6},2,0,4,null,null,null,4,"exam"]
[null,"23C130","Human Rights and Business","S",2,0,4,{"$nulls":9},4,"exam"]
[null,"23C123","Research and Development in the EU","S",2,0,4,{"$nulls":9},4,"exam"]
[null,"23C119","Business writing: in-company correspondence","A",{"$nulls":9},2,0,4,4,"exam"]
[null,"23C120","Business Informatics","A",{"$nulls":9},2,1,5,5,"exam"]
[null,"23C122","Internationalisation of firms","S",{"$nulls":6},2,1,5,null,null,null,5,"exam",null,"20A108EN"]
[null,"23C124","Mathematical Statistics","A",null,null,null,2,2,5,{"$nulls":6},5,"exam"]
[null,"23C125","e-Business","A",null,null,null,2,null,4,{"$nulls":6},4,"exam"]
[null,"23C126","Integrated Business Processes with the SAP ERP System",{"$nulls":7},0,3,4,null,null,null,4,"pcm",null,"23B110"]
[null,"23C131","Modern China","A",null,null,null,2,0,4,{"$nulls":6},4,"pcm",null,"23B104EN"]
[null,"23C121","Competitiveness in the EU","A",{"$nulls":9},0,2,4,4,"pcm"]
[null,"CKV","Courses completed abroad",{"$nulls":14},"exam"]
[null,null,"Required credits: 37",null,4,1,9,4,0,8,6,0,12,4,0,8,{"$f":"SUM(Q22:Q45)","v":89}]
[]
["D: Optional module ","Code","Course name","Semester","2nd semester",null,null,"1st semester",null,null,"4th semester",null,null,"3rd semester",null,null,"Credit","Assessment","Prerequisites"]
[{"$nulls":4},"Contact hours/week",null,"Credit","Contact hours/week",null,"Credit","Contact hours/week",null,"Credit","Contact hours/week",null,"Credit"]
[{"$nulls":4},"Lec","Sem",null,"Lec","Sem",null,"Lec","Sem",null,"Lec","Sem",null,null,null,"Exam","Course","Paralell"]
[null,"23D106","Freedom, Security and Justice in Europe","A",{"$nulls":9},2,0,4,4,"exam"]
[null,"20D103","International Week","S",2,null,5,null,null,null,2,null,5,null,null,null,5,"exam"]
[null,"23D108","English for Academic Writing","S",null,2,4,{"$nulls":9},4,"pcm"]
[null,"DSZV","Courses completed abroad"]
[null,null,"Required credits: 8**",{"$nulls":7},2,null,4,2,null,4,{"$f":"SUM(Q51:Q54)","v":13}]
[]
[null,null,"** The 8 credits of the optional module can be completed with taking up further courses form the C module"]
[]
["Thesis module","23C501EN","Thesis seminar","S",{"$nulls":7},4,5,null,null,null,5,"pcm"]
[null,"23C502EN","Thesis consultation","S",{"$nulls":7},8,10,null,null,null,10,"pcm"]
[{"$nulls":11},{"$f":"SUM(L59:L60)","v":12},{"$f":"SUM(M59:M60)","v":15},null,null,null,{"$f":"SUM(Q59:Q60)","v":15}]
[]
[null,null,"Total credits",null,null,null,{"$f":"G11+G20+G46+G55+G61","v":34},null,null,{"$f":"J11+J20+J46+J55+J61","v":33},null,null,{"$f":"M11+M20+M46+M55+M61","v":31},null,null,{"$f":"P11+P20+P46+P55+P61","v":22},{"$f":"SUM(J63:M63)","v":64}]
[null,null,"Contact hours / week",null,{"$f":"E11+E20+E46+E55+E61","v":14},{"$f":"F11+F20+F46+F55+F61","v":11},null,{"$f":"H11+H20+H46+H55+H61","v":14},{"$f":"I11+I20+I46+I55+I61","v":10},null,{"$f":"K11+K20+K46+K55+K61","v":8},{"$f":"L11+L20+L46+L55+L61","v":12},null,{"$f":"N11+N20+N46+N55+N61","v":10},{"$f":"O11+O20+O46+O55+O61","v":4}]
[null,null,"Contact hours / semester (lecture, seminar)",null,{"$f":"E64*15","v":210},{"$f":"F64*15","v":165},null,{"$f":"H64*15","v":210},{"$f":"I64*15","v":150},null,{"$f":"K64*15","v":120},{"$f":"L64*15","v":180},null,{"$f":"N64*15","v":150},{"$f":"O64*15","v":60}]
[null,null,"Contact hours / semester together",null,{"$f":"E65+F65","v":375},null,null,{"$f":"H65+I65","v":360},null,null,{"$f":"K65+L65","v":300},null,null,{"$f":"N65+O65","v":210}]
[]
[]
[null,null,"Programme completion and exit requirements (credits) according to Hungarian regulations"]
[null,null,"Economic and methodological module (25-40 credits)",{"$nulls":6},"credits"]
[null,null,"International economy and business basic module (30-45 credits)",{"$nulls":6},25]
[null,null,"Programme-specific module (30-45 credits)",{"$nulls":6},35]
[null,null,"Optional module (minimum 6 credits)",{"$nulls":6},37]
[null,null,"Thesis module (15 credits)",{"$nulls":6},8]
[null,null,"Together (120 credits)",{"$nulls":6},15]
[{"$nulls":9},{"$f":"SUM(J71:J75)","v":120}]
[]
[null,"pcm","practical course mark (five-grade)"]
[null,"A:","Autumn"]
[null,"S:","Spring"]